bitfinex-derivatives/quotes_ETHF0:USTF0_20250411
["timestamp","ask_amount","ask_price","bid_price","bid_amount"]
[1744383294341,1.28546,1556.6,1556.5,5.02978]
[1744383294546,0.00963235,1556.7,1556.6,1.28546]
[1744383294957,0.00963235,1556.7,1556.6,5.02976]
[1744383295256,0.00963235,1556.7,1556.6,5.83684067]
[1744383295552,1.29501235,1556.7,1556.6,5.83684067]
[1744383295755,0.00963235,1556.7,1556.6,5.83684067]
[1744383296253,1.29501235,1556.7,1556.6,5.02976]
[1744383296649,1.29501235,1556.7,1556.6,3.7443]
[1744383297349,0.00963235,1556.7,1556.6,5.89571709]
[1744383297556,1.29501235,1556.7,1556.6,5.89571709]
[1744383298553,0.00963235,1556.7,1556.6,5.89571709]
[1744383299451,0.00963235,1556.7,1556.6,9.10351709]
[1744383300053,0.00963235,1556.7,1556.6,5.89571709]
[1744383300254,0.00963235,1556.7,1556.6,9.10351709]
[1744383301354,0.00963235,1556.7,1556.6,5.89571709]
[1744383301546,1.29501235,1556.7,1556.6,9.10351709]
[1744383301751,1.29501235,1556.7,1556.6,0.86595709]
[1744383302146,4.94631235,1556.7,1556.6,0.86595709]
[1744383302347,0.00963235,1556.7,1556.6,2.15141709]
[1744383302956,0.00963235,1556.7,1556.6,5.84731709]
[1744383303158,0.00963235,1556.7,1556.6,9.05511709]
[1744383303650,0.00963235,1556.7,1556.6,15.51571709]
[1744383307963,0.00963235,1556.7,1556.6,12.30791709]
[1744383308362,1.29501235,1556.7,1556.6,12.30791709]
[1744383309163,1.29501235,1556.7,1556.6,4.56185709]
[1744383309364,4.56091235,1556.7,1556.6,4.56185709]
[1744383309564,0.00963235,1556.7,1556.6,5.84731709]
[1744383309760,0.00963235,1556.7,1556.6,9.05511709]
[1744383310665,1.29501235,1556.7,1556.6,5.84731709]
[1744383311365,0.00963235,1556.7,1556.6,5.84731709]
[1744383311566,1.29501235,1556.7,1556.6,4.56185709]
[1744383311862,1.29501235,1556.7,1556.6,0.86595709]
[1744383312062,8.23301235,1556.7,1556.6,0.86595709]
[1744383312455,6.94763235,1556.7,1556.6,2.15141709]
[1744383312659,3.88133235,1556.7,1556.6,2.15141709]
[1744383312863,3.88133235,1556.7,1556.6,5.90701709]
[1744383313266,5.16671235,1556.7,1556.6,5.90701709]
[1744383314864,5.16671235,1556.7,1556.6,4.62155709]
[1744383315069,5.16671235,1556.7,1556.6,0.86595709]
[1744383315570,10.16671235,1556.7,1556.6,0.86595709]
[1744383316168,13.37451235,1556.7,1556.6,0.86595709]
[1744383316363,12.45473235,1556.7,1555.8,3.21743235]
[1744383316668,12.45473235,1556.7,1556.1,1.28585]
[1744383316669,4.49356,1556.3,1556.1,1.28585]
[1744383316868,3.2078,1556.3,1556.2,4.99229]
[1744383317169,4.49351,1556.3,1556.2,3.7065]
[1744383318370,4.49351,1556.3,1556.0,1.28596]
[1744383318371,1.28588,1556.1,1556.0,1.28596]
[1744383318572,1.28596,1556.0,1555.9,1.28598]
[1744383318766,7.1665,1556.2,1555.9,4.92388]
[1744383319068,1.28588,1556.1,1556.0,1.28593]
[1744383319272,1.28604,1555.9,1555.8,7.58502235]
[1744383319567,1.28604,1555.9,1555.8,9.93683235]
[1744383319969,5.11239,1556.0,1555.9,1.28604]
[1744383320164,5.11239,1556.0,1555.9,4.92394]
[1744383320469,5.11239,1556.0,1555.9,3.6379]
[1744383321170,5.11236,1556.0,1555.9,4.92394]
[1744383321370,1.28596,1556.0,1555.9,4.92394]
[1744383322073,8.02844,1556.1,1555.9,4.92394]
[1744383322372,1.28596,1556.0,1555.9,4.92394]
[1744383323872,6.7425,1556.1,1555.8,0.00963235]
[1744383323873,1.28604,1555.9,1555.8,0.00963235]
[1744383324275,1.28604,1555.9,1555.8,3.56243235]
[1744383325482,1.28604,1555.9,1555.8,4.84850235]
[1744383325684,1.28604,1555.9,1555.8,4.84855235]
[1744383325880,1.28604,1555.9,1555.8,0.00963235]
[1744383326481,4.9145,1556.0,1555.8,1.29575235]
[1744383326681,4.91449,1556.0,1555.8,0.00963235]
[1744383326882,4.91449,1556.0,1555.9,1.28604]
[1744383327082,4.91449,1556.0,1555.9,3.5528]
[1744383327973,3.6285,1556.0,1555.9,4.83884]
[1744383328281,4.91446,1556.0,1555.9,4.83884]
[1744383328886,4.91446,1556.0,1555.9,5.65896192]
[1744383329188,3.114,1556.1,1555.9,4.37292192]
[1744383329383,8.83981,1556.2,1556.1,1.28588]
[1744383329584,1.28588,1556.1,1556.0,3.6011]
[1744383329785,1.28596,1556.0,1555.9,3.2924]
[1744383330087,2.25087176,1555.9,1555.8,0.00963235]
[1744383330278,5.81437176,1555.9,1555.8,0.00963235]
[1744383330680,5.81437176,1555.9,1555.8,1.29575235]
[1744383330882,4.52833176,1555.9,1555.8,1.29575235]
[1744383331580,4.52833176,1555.9,1555.8,5.32343225]
[1744383331780,5.81437176,1555.9,1555.8,2.11563225]
[1744383332379,5.81437176,1555.9,1555.8,0.82951225]
[1744383332573,5.81437176,1555.9,1555.8,2.11563225]
[1744383333377,0.96483176,1555.9,1555.8,5.32343225]
[1744383333577,0.96483176,1555.9,1555.8,2.11563225]
[1744383333879,1.28604,1555.9,1555.8,2.11563225]
[1744383334190,7.44184977,1556.1,1556.0,1.28596]
[1744383334379,7.44184977,1556.1,1556.0,4.49376]
[1744383334777,7.44184977,1556.1,1556.0,8.34266]
[1744383334985,7.44184977,1556.1,1556.0,9.1625399]
[1744383335684,8.72772977,1556.1,1556.0,45.4687799]
[1744383335986,8.72772977,1556.1,1556.0,46.7547399]
[1744383336185,8.72772977,1556.1,1556.0,5.9547399]
[1744383336781,8.72772977,1556.1,1556.0,0.8198799]
[1744383336984,11.83932977,1556.1,1556.0,2.1058399]
[1744383337284,11.83932977,1556.1,1556.0,0.8198799]
[1744383337485,11.83932977,1556.1,1556.0,2.1058399]
[1744383337681,11.83932977,1556.1,1556.0,0.8198799]
[1744383337893,11.83932977,1556.1,1556.0,2.1058399]
[1744383338078,10.55344977,1556.1,1556.0,2.1058399]
[1744383338274,11.83932977,1556.1,1556.0,5.6928399]
[1744383338483,8.04568,1556.1,1556.0,5.6928399]
[1744383339786,6.7598,1556.1,1556.0,5.6928399]
[1744383339980,8.04568,1556.1,1556.0,5.6928399]
[1744383340286,6.7598,1556.1,1556.0,5.6928399]
[1744383340474,8.04568,1556.1,1556.0,5.6928399]
[1744383340674,6.7598,1556.1,1556.0,5.6928399]
[1744383340988,1.28579,1556.3,1556.2,1.28578]
[1744383341192,8.15519,1556.3,1556.2,1.28578]
[1744383341387,8.15517,1556.3,1556.2,1.28579]
[1744383341686,8.15511,1556.3,1556.2,2.1056699]
[1744383342087,8.15511,1556.3,1556.2,0.8198799]
[1744383342387,8.15511,1556.3,1556.2,2.1056699]
[1744383342681,6.8694,1556.3,1556.2,2.1056699]
[1744383342888,1.28571,1556.3,1556.2,2.1055999]
[1744383343287,15.70623977,1556.4,1556.3,1.28571]
[1744383343482,15.70623977,1556.4,1556.3,0.8198799]
[1744383344082,15.70623977,1556.4,1556.3,2.1055899]
[1744383344286,7.44184977,1556.4,1556.3,2.1055899]
[1744383344586,7.44184977,1556.4,1556.3,12.3430899]
[1744383344994,7.44184977,1556.4,1556.3,17.3430899]
[1744383346588,15.00995789,1556.6,1556.5,1.28555]
[1744383346786,1.29508235,1556.7,1556.6,1.28546]
[1744383346989,5.13628235,1556.7,1556.6,4.96016]
[1744383347290,5.13628235,1556.7,1556.6,5.7800399]
[1744383347790,5.13628235,1556.7,1556.6,8.9878399]
[1744383347991,5.13628235,1556.7,1556.6,5.7800399]
[1744383348493,8.34408235,1556.7,1556.6,0.8198799]
[1744383348684,5.13628235,1556.7,1556.6,0.8198799]
[1744383348885,10.13628235,1556.7,1556.6,0.8198799]
[1744383349295,5.13628235,1556.7,1556.6,0.8198799]
[1744383350390,8.34408235,1556.7,1556.6,0.8198799]
[1744383350594,13.34408235,1556.7,1556.6,0.8198799]
[1744383351390,3.21387,1556.5,1556.0,3.2078]
[1744383351599,1.28596,1556.0,1555.9,1.28599]
[1744383351783,1.28596,1556.0,1555.9,5.23779]
[1744383351989,1.28596,1556.0,1555.9,6.11503319]
[1744383352488,5.10285,1556.1,1555.9,6.11503319]
[1744383352989,5.10285,1556.1,1556.0,0.87724319]
[1744383354092,8.31065,1556.1,1556.0,0.87724319]
[1744383354301,1.28604,1555.9,1555.8,0.00963235]
[1744383354593,11.1594,1556.0,1555.9,1.28604]
[1744383354785,0.3656,1556.3,1556.0,1.28591]
[1744383354980,0.3656,1556.3,1555.9,4.0487]
[1744383354981,1.28591,1556.1,1555.9,10.9346]
[1744383355391,7.42072,1556.2,1555.9,12.22058]
[1744383355595,1.28596,1556.0,1555.9,10.9346]
[1744383355795,1.28596,1556.0,1555.9,12.22064]
[1744383355990,1.28596,1556.0,1555.9,10.9346]
[1744383356192,1.28596,1556.0,1555.9,11.78619137]
[1744383356391,5.49213,1556.1,1555.9,13.07223137]
[1744383356587,5.49213,1556.1,1556.0,5.33466]
[1744383356786,5.49213,1556.1,1556.0,4.0487]
[1744383357492,5.49213,1556.1,1556.0,4.90029137]
[1744383359601,1.28593,1556.1,1556.0,6.18625137]
[1744383360098,1.28593,1556.1,1556.0,4.90029137]
[1744383361201,1.28593,1556.1,1556.0,6.18625137]
[1744383361400,7.44184977,1556.2,1556.0,4.90029137]
[1744383361601,8.72763977,1556.2,1556.1,5.13078]
[1744383361801,8.72763977,1556.2,1556.1,5.98237137]
[1744383361999,8.72763977,1556.2,1556.1,4.69649137]
[1744383362499,7.44184977,1556.2,1556.1,5.98237137]
[1744383362701,7.44184977,1556.2,1556.1,10.98237137]
[1744383363713,8.72763977,1556.2,1556.1,10.98237137]
[1744383363907,8.72763977,1556.2,1556.1,5.98237137]
[1744383364797,1.28579,1556.2,1556.1,5.98237137]
[1744383365000,7.44184977,1556.3,1556.2,1.28579]
[1744383365199,7.44184977,1556.3,1556.2,8.46959]
[1744383365400,7.44184977,1556.3,1556.2,12.66528137]
[1744383366108,8.72755977,1556.3,1556.2,12.66528137]
[1744383366312,8.72755977,1556.3,1556.2,8.17169137]
[1744383366505,12.62525977,1556.3,1556.2,9.45748137]
[1744383367912,12.62525977,1556.3,1556.2,0.85159137]
[1744383368116,16.18625977,1556.3,1556.2,0.85159137]
[1744383368810,21.18625977,1556.3,1556.2,0.85159137]
[1744383369112,13.74441,1556.3,1556.2,0.85159137]
[1744383369312,1.28604,1555.9,1555.8,5.43701235]
[1744383369512,3.21475,1556.1,1555.8,5.43699235]
[1744383369819,1.28604,1555.9,1555.8,5.43699235]
[1744383370009,1.28604,1555.9,1555.8,6.2891843]
[1744383370205,1.28604,1555.9,1555.8,5.0031243]
[1744383370514,5.22394,1555.9,1555.8,0.8618243]
[1744383370908,10.22394,1555.9,1555.8,0.8618243]
[1744383371508,10.22394,1555.9,1555.8,0.00963235]
[1744383371906,5.22394,1555.9,1555.8,0.00963235]
[1744383374322,1.28629,1555.6,1555.5,10.06539592]
[1744383374908,1.28646,1555.4,1555.3,3.8256]
[1744383375108,1.28641,1555.5,1555.4,1.28646]
[1744383375317,1.28641,1555.5,1555.4,3.8256]
[1744383376118,1.28637,1555.5,1555.4,3.8256]
[1744383376815,5.49018235,1555.6,1555.4,5.11204]
[1744383377016,1.28637,1555.5,1555.4,4.65147403]
[1744383377415,4.20383235,1555.6,1555.4,5.93793403]
[1744383377618,5.49012235,1555.6,1555.5,3.9118]
[1744383378114,1.28637,1555.5,1555.4,3.411]
[1744383378319,1.28637,1555.5,1555.4,4.69741]
[1744383378526,7.19083235,1555.6,1555.4,4.69741]
[1744383378719,8.47717235,1555.6,1555.5,3.9118]
[1744383379516,7.19083235,1555.6,1555.5,5.19817]
[1744383379715,3.21743235,1555.6,1555.5,5.19817]
[1744383379916,3.21743235,1555.6,1555.5,6.02424502]
[1744383380219,1.29592235,1555.6,1555.5,4.73787502]
[1744383380423,4.95692235,1555.6,1555.5,4.73787502]
[1744383380620,3.67063235,1555.6,1555.5,6.02424502]
[1744383384024,0.00963235,1555.6,1555.5,6.02424502]
[1744383384421,0.00963235,1555.6,1555.5,17.34324502]
[1744383385222,0.00963235,1555.6,1555.5,12.34324502]
[1744383387126,0.00963235,1555.6,1555.5,53.14324502]
[1744383387332,0.00963235,1555.6,1555.5,6.02424502]
[1744383388732,2.35e-06,1555.6,1555.5,17.34324502]
[1744383389931,2.35e-06,1555.6,1555.5,58.14324502]
[1744383393843,2.35e-06,1555.6,1555.5,58.78644502]
[1744383394237,2.35e-06,1555.6,1555.5,58.14324502]
[1744383394440,2.35e-06,1555.6,1555.5,58.78644502]
[1744383394639,2.35e-06,1555.6,1555.5,58.14324502]
[1744383395147,2.35e-06,1555.6,1555.5,58.78644502]
[1744383395339,2.35e-06,1555.6,1555.5,57.31717]
[1744383395542,2.35e-06,1555.6,1555.5,58.1437764]
[1744383396051,2.35e-06,1555.6,1555.5,53.1437764]
[1744383397240,2.35e-06,1555.6,1555.5,58.1437764]
[1744383399749,8.40717723,1556.2,1556.1,1.28588]
[1744383399750,3.63806723,1556.2,1556.1,1.28588]
[1744383399942,2.24801723,1556.2,1556.1,10.78468]
[1744383400449,7.23e-06,1556.2,1556.1,11.6112864]
[1744383400648,7.23e-06,1556.2,1556.1,15.5058864]
[1744383400845,6.15432935,1556.3,1556.2,1.28579]
[1744383401047,1.62266935,1556.3,1556.2,5.18039]
[1744383401446,7.85864724,1556.4,1556.3,1.28571]
[1744383401750,7.8e-06,1556.4,1556.3,11.65151]
[1744383401939,7.8e-06,1556.4,1556.3,57.45151]
[1744383402144,7.8e-06,1556.4,1556.3,53.2781164]
[1744383402345,11.03270003,1556.5,1556.4,1.28563]
[1744383402544,7.06801238,1556.5,1556.4,15.4054364]
[1744383402745,5.24061238,1556.5,1556.4,15.4054364]
[1744383403055,2.35e-06,1556.5,1556.4,15.4054364]
[1744383406352,9.99086739,1556.7,1556.6,1.28546]
[1744383406555,9.99086739,1556.7,1556.6,4.49326]
[1744383406756,9.99086739,1556.7,1556.6,5.3198664]
[1744383407451,14.99086739,1556.7,1556.6,5.3198664]
[1744383407756,16.27624739,1556.7,1556.6,0.8266064]
[1744383408151,1.28546,1556.6,1556.5,1.28552]
[1744383408350,4.69756,1556.6,1556.5,1.28552]
[1744383408551,9.69756,1556.6,1556.5,1.28552]
[1744383409059,8.4121,1556.6,1556.5,2.1590363]
[1744383409459,13.31826,1556.6,1556.5,2.1590363]
[1744383409963,3.4121,1556.6,1556.5,2.1590363]
[1744383410260,3.4121,1556.6,1556.5,5.8053363]
[1744383410759,3.6207,1556.7,1556.6,1.28546]
[1744383410956,3.6207,1556.7,1556.6,9.0130763]
[1744383411459,3.34783235,1556.8,1556.7,1.28538]
[1744383411659,3.33478156,1556.8,1556.7,4.93168]
[1744383411958,3.33478156,1556.8,1556.7,11.22068]
[1744383412461,3.33478156,1556.8,1556.7,12.0941963]
[1744383412756,2.35e-06,1556.8,1556.7,12.0941963]
[1744383414562,2.35e-06,1556.8,1556.7,17.0941963]
[1744383414972,3.7113,1557.2,1557.1,1.28505]
[1744383415162,6.4731,1557.6,1557.5,1.28472]
[1744383415458,7.75774,1557.6,1557.5,1.28472]
[1744383415660,6.4731,1557.6,1557.5,1.28472]
[1744383415970,11.4731,1557.6,1557.5,1.28472]
[1744383416260,6.4731,1557.6,1557.5,4.49252]
[1744383416461,10.3377,1557.6,1557.5,5.43509357]
[1744383416960,10.3377,1557.6,1557.5,9.31369357]
[1744383417557,10.3377,1557.6,1557.5,50.11369357]
[1744383418264,6.4731,1557.6,1557.5,50.11369357]
[1744383418563,0.00642166,1557.7,1557.6,1.28464]
[1744383418761,0.00642166,1557.7,1557.6,5.10744]
[1744383419664,0.00642166,1557.7,1557.6,6.05001357]
[1744383419862,0.00642166,1557.7,1557.6,2.22721357]
[1744383420067,0.00642166,1557.7,1557.6,6.05001357]
[1744383420565,1.66e-06,1557.7,1557.6,6.05001357]
[1744383421368,1.66e-06,1557.7,1557.6,46.85001357]
[1744383425265,2.03621,1558.0,1557.9,1.28439]
[1744383425466,3.8597,1558.1,1558.0,1.28431]
[1744383425668,3.8597,1558.1,1558.0,5.19251]
[1744383426064,3.1124,1558.2,1558.1,1.28423]
[1744383426367,3.1124,1558.2,1558.1,5.43460357]
[1744383426570,8.1124,1558.2,1558.1,5.43460357]
[1744383426965,5.0,1558.2,1558.1,5.43460357]
[1744383427268,14.68529384,1559.4,1558.3,6.42017]
[1744383427572,3.9563,1559.2,1558.7,3.20921]
[1744383427769,3.9563,1559.2,1558.8,41.74257357]
[1744383428068,5.23969,1559.2,1559.0,1.28344]
[1744383428274,5.23969,1559.2,1559.1,1.2834]
[1744383428459,8.9563,1559.2,1559.1,2.22597357]
[1744383428661,10.23962,1559.2,1559.1,0.94257357]
[1744383429859,10.23962,1559.2,1559.1,2.22597357]
[1744383430055,8.9563,1559.2,1559.1,2.22597357]
[1744383430255,7.2201,1559.2,1559.1,2.22597357]
[1744383430460,7.2201,1559.2,1559.1,5.43377357]
[1744383431065,1.28313,1559.5,1559.1,4.15037357]
[1744383431363,6.4251,1559.4,1559.3,1.2832]
[1744383431960,6.4251,1559.4,1559.3,2.22577357]
[1744383432463,6.4251,1559.4,1559.3,5.43357357]
[1744383432775,6.4251,1559.4,1559.3,2.22577357]
[1744383433270,10.2876,1559.4,1559.3,2.22577357]
[1744383433470,11.57076,1559.4,1559.3,0.94257357]
[1744383433666,11.57076,1559.4,1559.3,2.22581357]
[1744383433971,10.2876,1559.4,1559.3,2.22581357]
[1744383434472,11.57076,1559.4,1559.3,0.94257357]
[1744383434969,10.2876,1559.4,1559.3,2.22581357]
[1744383435365,11.57076,1559.4,1559.3,0.94257357]
[1744383435871,16.57076,1559.4,1559.3,0.94257357]
[1744383436771,16.57076,1559.4,1559.3,2.22581357]
[1744383437069,11.57076,1559.4,1559.3,2.22581357]
[1744383437369,10.2876,1559.4,1559.3,2.22581357]
[1744383438070,8.43076,1559.4,1559.3,2.22581357]
[1744383438270,8.43076,1559.4,1559.3,0.94257357]
[1744383438467,13.43076,1559.4,1559.3,0.94257357]
[1744383438770,16.63856,1559.4,1559.3,0.94257357]
[1744383440569,1.2834,1559.1,1559.0,1.28343]
[1744383441065,1.2834,1559.1,1559.0,2.15289064]
[1744383441676,1.2834,1559.1,1559.0,0.86941064]
[1744383441974,6.2834,1559.1,1559.0,0.86941064]
[1744383442175,1.28357,1558.9,1558.8,1.28359]
[1744383442371,8.45882,1559.0,1558.9,1.28357]
[1744383442974,8.45878,1559.0,1558.9,1.28357]
[1744383443275,1.28357,1558.9,1558.8,5.08808]
[1744383443467,5.20787,1558.9,1558.8,4.1815]
[1744383443668,5.20787,1558.9,1558.8,2.15561371]
[1744383444381,3.9243,1558.9,1558.8,2.15561371]
[1744383444781,3.9243,1558.9,1558.8,5.96011371]
[1744383444988,5.20787,1558.9,1558.8,5.96011371]
[1744383445282,5.20787,1558.9,1558.8,0.87203371]
[1744383445475,8.43277,1558.9,1558.8,0.87203371]
[1744383446179,8.43277,1558.9,1558.8,2.15568371]
[1744383446478,8.43277,1558.9,1558.8,0.87203371]
[1744383449979,8.43277,1558.9,1558.8,2.15568371]
[1744383450185,8.43277,1558.9,1558.8,0.87203371]
[1744383450373,8.43277,1558.9,1558.8,2.15568371]
[1744383450677,1.28347,1559.1,1559.0,1.28345]
[1744383450874,1.28347,1559.1,1559.0,2.15548371]
[1744383451282,5.1142,1559.1,1559.0,5.76948371]
[1744383451475,4.62179,1559.2,1559.1,1.2834]
[1744383451778,7.1692,1559.2,1559.1,4.8974]
[1744383451972,7.1692,1559.2,1559.1,5.76943371]
[1744383452179,7.868,1559.3,1559.2,1.28332]
[1744383452373,4.66014,1559.3,1559.2,5.18402]
[1744383452574,3.2078,1559.7,1559.4,1.28313]
[1744383452779,3.2078,1559.7,1559.2,4.77273371]
[1744383452780,3.6798,1559.6,1559.5,1.28307]
[1744383452986,7.70795,1559.7,1559.6,1.28299]
[1744383453177,7.70795,1559.7,1559.6,5.18369]
[1744383453485,4.50015,1559.7,1559.6,6.05572371]
[1744383453679,4.50015,1559.7,1559.6,4.77273371]
[1744383453880,1.28295,1559.7,1559.6,4.77273371]
[1744383454074,1.28295,1559.7,1559.6,6.05572371]
[1744383454275,1.28295,1559.7,1559.6,4.77273371]
[1744383454785,1.28295,1559.7,1559.6,7.67065371]
[1744383456983,9.49075,1559.7,1559.6,0.87203371]
[1744383457191,12.75605,1559.7,1559.6,0.87203371]
[1744383458086,18.98005,1559.7,1559.6,0.87203371]
[1744383458587,1.28299,1559.6,1559.5,0.00963235]
[1744383458787,4.98759,1559.6,1559.5,0.00963235]
[1744383458990,9.98759,1559.6,1559.5,0.00963235]
[1744383459188,9.98759,1559.6,1559.5,2.35e-06]
[1744383459588,10.35319,1559.6,1559.5,2.35e-06]
[1744383459976,1.2834,1559.1,1559.0,0.80610268]
[1744383460182,4.4912,1559.1,1559.0,0.80610268]
[1744383460489,1.28373,1558.7,1558.6,3.5969]
[1744383460690,1.28373,1558.7,1558.6,6.49482]
[1744383460892,1.28373,1558.7,1558.6,7.30085518]
[1744383461794,1.29331234,1558.8,1558.7,1.28373]
[1744383462089,1.29331234,1558.8,1558.7,4.94053]
[1744383462279,1.29331234,1558.8,1558.7,4.46283518]
[1744383462479,1.29331234,1558.8,1558.7,5.74656518]
[1744383462480,0.00963234,1558.8,1558.7,5.74656518]
[1744383462686,1.29328234,1558.8,1558.7,7.36075518]
[1744383462885,5.18868234,1558.8,1558.7,4.46283518]
[1744383463090,1.29328234,1558.8,1558.7,4.46283518]
[1744383464094,1.29328234,1558.8,1558.7,8.64448518]
[1744383464283,1.29328234,1558.8,1558.7,7.36075518]
[1744383465494,1.29328234,1558.8,1558.7,4.46283518]
[1744383466594,0.00963234,1558.8,1558.7,5.74656518]
[1744383467184,0.00963234,1558.8,1558.7,10.74656518]
[1744383467891,0.00963234,1558.8,1558.7,13.64448518]
[1744383468088,1.29328234,1558.8,1558.7,13.64448518]
[1744383468794,0.00963234,1558.8,1558.7,13.64448518]
[1744383468990,1.29328234,1558.8,1558.7,8.64448518]
[1744383469299,1.29328234,1558.8,1558.7,4.46283518]
[1744383469498,1.29328234,1558.8,1558.7,5.74656518]
[1744383469797,6.29328234,1558.8,1558.7,0.80603518]
[1744383469995,1.28381,1558.6,1558.5,0.00963235]
[1744383470199,4.49161,1558.6,1558.5,0.00963235]
[1744383470394,9.85721,1558.6,1558.5,2.35e-06]
[1744383470594,13.47731,1558.6,1558.5,2.35e-06]
[1744383470797,1.28406,1558.3,1558.2,6.95075827]
[1744383470999,10.71686,1558.3,1558.2,3.36800827]
[1744383471306,15.71686,1558.3,1558.2,1.44812827]
[1744383471490,15.71686,1558.3,1558.2,8.27e-06]
[1744383471691,21.81616,1558.3,1558.2,8.27e-06]
[1744383473790,16.81616,1558.3,1558.2,8.27e-06]
[1744383473992,1.28414,1558.2,1558.1,0.00963235]
[1744383474294,4.78894,1558.2,1558.1,0.00963235]
[1744383474691,4.78894,1558.2,1558.1,2.90755235]
[1744383475496,1.28414,1558.2,1558.1,2.90755235]
[1744383475696,1.28414,1558.2,1558.1,6.24295235]
[1744383476098,4.70954,1558.2,1558.1,0.00963235]
[1744383476291,1.28414,1558.2,1558.1,0.00963235]
[1744383476594,1.28414,1558.2,1558.1,3.48063235]
[1744383477098,1.28414,1558.2,1558.1,6.37855235]
[1744383479107,4.49194,1558.2,1558.1,0.00963235]
[1744383479294,7.83174,1558.2,1558.1,0.00963235]
[1744383479601,12.83174,1558.2,1558.1,1e-08]
[1744383480392,4.62394,1558.2,1558.1,1e-08]
[1744383480601,4.62394,1558.2,1558.1,3.48570001]
[1744383481204,1.28414,1558.2,1558.1,3.48570001]
[1744383482097,1.28414,1558.2,1558.1,6.38362001]
[1744383482500,4.49194,1558.2,1558.1,1e-08]
[1744383482795,7.91124,1558.2,1558.1,1e-08]
[1744383483191,1.28414,1558.2,1558.1,1e-08]
[1744383483597,4.49194,1558.2,1558.1,1e-08]
[1744383483800,7.91124,1558.2,1558.1,1e-08]
[1744383484803,8.43234967,1558.2,1558.1,1e-08]
[1744383485406,5.22454967,1558.2,1558.1,1e-08]
[1744383485601,1.28414,1558.2,1558.1,1e-08]
[1744383486302,1.28414,1558.2,1558.1,9.58272001]
[1744383487199,1.28414,1558.2,1558.1,6.68480001]
[1744383487904,1.28414,1558.2,1558.1,9.58272001]
[1744383489312,4.49194,1558.2,1558.1,9.58272001]
[1744383489607,4.49194,1558.2,1558.1,1e-08]
[1744383489906,1.28414,1558.2,1558.1,1e-08]
[1744383490206,1.28414,1558.2,1558.1,4.74313001]
[1744383490708,1.28414,1558.2,1558.1,7.64105001]
[1744383490905,3.2078,1558.4,1558.1,8.45890001]
[1744383491203,4.49186,1558.4,1558.3,1.28406]
[1744383491710,3.2078,1558.4,1558.3,4.80786]
[1744383491908,4.49178,1558.4,1558.3,6.42172]
[1744383492110,4.49178,1558.4,1558.3,3.5238]
[1744383493108,4.49178,1558.4,1558.3,6.42172]
[1744383493304,4.49178,1558.4,1558.3,3.5238]
[1744383494009,4.49178,1558.4,1558.3,6.42172]
[1744383494901,4.49178,1558.4,1558.3,3.5238]
[1744383495210,1.28414,1558.2,1558.1,1e-08]
[1744383495502,1.28414,1558.2,1558.1,6.29452001]
[1744383495710,4.49194,1558.2,1558.1,3.39660001]
[1744383495904,4.49194,1558.2,1558.1,1e-08]
[1744383496101,12.91874,1558.2,1558.1,1e-08]
[1744383497507,7.91874,1558.2,1558.1,1e-08]
[1744383499311,12.91874,1558.2,1558.1,1e-08]
[1744383500912,7.91874,1558.2,1558.1,1e-08]
[1744383504315,4.49194,1558.2,1558.1,1e-08]
[1744383504614,7.83034,1558.2,1558.1,1e-08]
[1744383506613,4.49194,1558.2,1558.1,1e-08]
[1744383507022,4.49194,1558.2,1558.1,2.89792001]
[1744383507816,4.49194,1558.2,1558.1,5.97820001]
[1744383508217,4.49194,1558.2,1558.1,3.40750001]
[1744383508424,8.15224,1558.2,1558.1,1e-08]
[1744383509722,12.2337,1558.2,1557.0,3.2078]
[1744383509920,1.28505,1557.1,1557.0,43.69792]
[1744383510111,1.28505,1557.1,1557.0,5.0]
[1744383510319,1.59493,1557.3,1557.0,6.28508]
[1744383510517,1.2849,1557.3,1557.1,3.2078]
[1744383510823,1.2849,1557.3,1557.1,4.49282]
[1744383510824,1.28497,1557.2,1557.1,4.49282]
[1744383511026,1.28497,1557.2,1557.1,11.2005]
[1744383511216,1.28497,1557.2,1557.1,48.7927]
[1744383511820,1.28497,1557.2,1557.1,63.88499726]
[1744383512022,0.00963235,1557.3,1557.2,1.28497]
[1744383512328,0.00963235,1557.3,1557.2,6.28497]
[1744383512818,1.29452235,1557.3,1557.2,9.83947]
[1744383513011,0.00963235,1557.3,1557.2,9.83947]
[1744383514728,1.29452235,1557.3,1557.2,9.83947]
[1744383515928,1.29452235,1557.3,1557.2,8.5545]
[1744383516227,1.29452235,1557.3,1557.2,3.5545]
[1744383519427,1.29452235,1557.3,1557.2,4.83947]
[1744383520224,1.29452235,1557.3,1557.2,3.5545]
[1744383521820,1.28497,1557.2,1557.1,5.8956]
[1744383522128,1.28497,1557.2,1557.1,9.4453]
[1744383523024,1.28497,1557.2,1557.1,12.6531]
[1744383523428,1.29458235,1557.3,1557.1,13.93813]
[1744383523625,1.29458235,1557.3,1557.2,3.5497]
[1744383524024,0.00963235,1557.3,1557.2,4.83467]
[1744383524630,1.29452235,1557.3,1557.2,3.5497]
[1744383525320,1.28497,1557.2,1557.1,2.9927]
[1744383525528,4.66007,1557.2,1557.1,2.9927]
[1744383525729,1.28505,1557.1,1557.0,3.39833235]
[1744383525928,4.66015,1557.1,1557.0,3.39833235]
[1744383526234,7.86795,1557.1,1557.0,0.00963235]
[1744383526736,1.28522,1556.9,1556.8,3.3887]
[1744383527425,1.28538,1556.7,1556.6,6.0748]
[1744383527626,1.28538,1556.7,1556.6,9.4635]
[1744383528229,4.66048,1556.8,1556.6,9.4635]
[1744383528433,1.28538,1556.8,1556.7,3.6526]
[1744383531436,1.28538,1556.7,1556.6,6.0748]
[1744383531729,4.63978,1556.7,1556.6,9.6651]
[1744383532335,12.60586,1557.0,1556.6,14.15832]
[1744383532532,1.2853,1556.8,1556.7,3.5903]
[1744383533038,4.63969,1556.9,1556.7,4.87568]
[1744383533227,1.28529,1556.9,1556.8,3.2078]
[1744383533536,3.3544,1557.1,1556.8,8.0834]
[1744383533738,1.28522,1556.9,1556.8,6.7981]
[1744383533936,1.28522,1556.9,1556.8,3.2078]
[1744383534336,1.28533,1556.8,1556.6,15.4646]
[1744383534532,1.28538,1556.7,1556.6,16.75]
[1744383534733,1.28535,1556.8,1556.6,16.75]
[1744383535434,1.28535,1556.8,1556.6,15.4646]
[1744383535635,1.2853,1556.9,1556.7,1.28533]